[Event "Istanbul Open 2018"]
[Site "Istanbul"]
[Date "2018.09.02"]
[Round "1"]
[White "Mohamed Hany, Hassan Osman"]
[Black "Teymurov, Elnur"]
[Result "0-1"]
[ECO "D00"]
[WhiteElo "1527"]
[BlackElo "1823"]
[Annotator "NA"]
[PlyCount "122"]
[EventDate "2018.09.02"]
[EventType "swiss"]
[EventCountry "TUR"]
[SourceTitle "playchess.com"]
[Source "ChessBase"]
[SourceQuality "1"]
[TimeControl "5400+30"]

1. d4 {[%emt 0:00:30]} d5 {[%emt 0:03:30]} 2. Bf4 {[%emt 0:00:30]} Nf6 {[%emt 0:01:30]} 3. Nc3 {[%emt 0:00:30]} e6 {[%emt 0:00:30]} 4. Qd2 {[%emt 0:00:00]} Bd7 {[%emt 0:00:30] D00: 1 d4 d5: Unusual lines} 5. f3 {[%emt 0:00:00]} (5. e3 a6 6. Bd3 c5 7. dxc5 Bxc5 8. Nf3 Bc6 9. Ne5 Bd6 10. O-O Qc7 11. Nxc6 Nxc6 12. Bxd6 Qxd6 {½-½ (44) Viennot,D (2263)-Caloone,T (2149) Belfort 2017}) 5... c5 {[%emt 0:02:30]} 6. e3 {[%emt 0:01:30]} a6 $146 {[%emt 0:04:30]} ({Predecessor:} 6... Nc6 7. Nge2 a6 8. g4 b5 9. Ng3 Qa5 10. h4 b4 11. Nd1 Be7 12. Nf2 c4 13. c3 bxc3 14. Qxc3 Bb4 {0-1 (14) Laubrock,P (1377)-Wastian,J (1409) Gross Doelln 2010}) 7. a4 {[%emt 0:00:30]} Nc6 {[%emt 0:00:30]} 8. g4 {[%emt 0:02:30]} Rc8 {[%emt 0:13:30]} 9. Nge2 {[%emt 0:01:30]} cxd4 {[%emt 0:02:30]} 10. exd4 {[%emt 0:00:30]} Bb4 {[%emt 0:00:30]} 11. Qd3 {[%emt 0:02:30]} Qe7 {[%emt 0:01:30]} 12. h4 {[%emt 0:01:30]} Bd6 {[%emt 0:03:30]} 13. Na2 $2 {[%emt 0:01:30]} (13. Qd2 $15) 13... Bxf4 {[%emt 0:00:30]} 14. Nxf4 {[%emt 0:00:30]} Nb4 {[%emt 0:02:30]} 15. Nxb4 {[%emt 0:00:30]} Qxb4+ {[%emt 0:00:00]} 16. c3 {[%emt 0:00:30]} Qxb2 {[%emt 0:02:00]} 17. Rb1 {[%emt 0:00:30]} Qxc3+ {[%emt 0:01:30]} 18. Qxc3 {[%emt 0:00:30]} Rxc3 {[%emt 0:00:00]} 19. g5 {[%emt 0:01:30]} Ng8 {[%emt 0:05:00]} 20. Rxb7 {[%emt 0:00:00]} Ne7 {[%emt 0:02:30]} 21. Nd3 {[%emt 0:03:00]} Bc8 {[%emt 0:03:30]} ({Stronger than} 21... Bxa4 22. Nc5 $14) 22. Rb8 {[%emt 0:01:30]} O-O {[%emt 0:01:30]} 23. Kd2 {[%emt 0:03:30]} Ra3 {[%emt 0:01:30]} 24. Nc5 {[%emt 0:00:30]} Nc6 {[%emt 0:00:30]} 25. Rb6 {[%emt 0:00:30]} Nxd4 {[%emt 0:00:30]} 26. f4 {[%emt 0:01:30] [#]} e5 $1 {[%emt 0:08:30]} 27. fxe5 {[%emt 0:00:30]} Bf5 {[%emt 0:05:30]} 28. Bxa6 {[%emt 0:01:30]} Nf3+ {[%emt 0:01:30]} 29. Ke2 {[%emt 0:00:30]} Nxe5 {[%emt 0:01:30]} 30. Bb5 {[%emt 0:02:30]} (30. Rb3 {was worth a try.} Ra2+ 31. Ke3) 30... d4 {[%emt 0:02:30]} 31. Rd6 $19 {[%emt 0:01:30]} (31. Rf1 $142 Ra2+ 32. Ke1) 31... Ra2+ {[%emt 0:07:30]} 32. Kf1 {[%emt 0:00:30]} Bg4 {[%emt 0:03:22]} 33. Rg1 {[%emt 0:01:30]} Bh3+ {[%emt 0:00:36]} 34. Ke1 {[%emt 0:02:30]} Nf3+ {[%emt 0:00:04]} 35. Kd1 {[%emt 0:00:00]} Nxg1 {[%emt 0:01:48]} 36. Rxd4 {[%emt 0:00:00]} Nf3 {[%emt 0:00:28]} 37. Rd3 {[%emt 0:00:30]} Ra1+ {[%emt 0:00:35]} 38. Ke2 {[%emt 0:00:30]} Bf1+ {[%emt 0:00:09]} 39. Kxf3 {[%emt 0:00:30]} Bxd3 {[%emt 0:00:07]} 40. Nxd3 {[%emt 0:00:30]} Ra8 {[%emt 0:00:51]} 41. Nc5 {[%emt 0:00:30]} Ra5 {[%emt 0:00:28]} 42. Ke4 {[%emt 0:00:00]} Rxb5 {[%emt 0:00:34]} 43. axb5 {[%emt 0:00:00]} Ra5 {[%emt 0:00:02]} 44. Nd7 {[%emt 0:02:30]} Rxb5 {[%emt 0:00:09]} 45. Kf4 {[%emt 0:00:30]} Rb4+ {[%emt 0:00:43]} 46. Kg3 {[%emt 0:00:00]} Rd4 {[%emt 0:00:37]} 47. Ne5 {[%emt 0:00:00]} Re4 {[%emt 0:00:20]} 48. Nf3 {[%emt 0:00:30]} Kf8 {[%emt 0:00:13]} 49. h5 {[%emt 0:00:30]} Ke7 {[%emt 0:00:33]} 50. Nd2 {[%emt 0:00:30]} Ra4 {[%emt 0:00:23]} 51. Nf3 {[%emt 0:00:30]} Ke6 {[%emt 0:01:05]} 52. Nh4 {[%emt 0:00:30]} Rxh4 {[%emt 0:00:53]} 53. Kxh4 {[%emt 0:00:30]} Kf5 {[%emt 0:00:04]} 54. g6 {[%emt 0:03:30]} fxg6 {[%emt 0:00:01]} 55. hxg6 {[%emt 0:00:00]} hxg6 {[%emt 0:00:10]} 56. Kg3 {[%emt 0:00:00]} Kg5 {[%emt 0:00:15]} 57. Kh3 {[%emt 0:00:30]} Kf4 {[%emt 0:00:30]} 58. Kh4 {[%emt 0:00:30]} g5+ {[%emt 0:00:30]} 59. Kh3 {[%emt 0:00:30]} Kf3 {[%emt 0:00:00]} 60. Kh2 {[%emt 0:00:00]} g4 {[%emt 0:00:00]} 61. Kg1 {[%emt 0:00:00]} Kg3 {[%emt 0:00:00]} 0-1

[Event "Istanbul Open 2018"]
[Site "Istanbul"]
[Date "2018.09.02"]
[Round "1"]
[White "Yilmaz, Kuzey"]
[Black "Yildiz, Erhan"]
[Result "0-1"]
[ECO "C54"]
[WhiteElo "1414"]
[BlackElo "1777"]
[Annotator "NA"]
[PlyCount "78"]
[EventDate "2018.09.02"]
[EventType "swiss"]
[EventCountry "TUR"]
[SourceTitle "playchess.com"]
[Source "ChessBase"]
[SourceQuality "1"]
[TimeControl "5400+30"]

1. e4 {[%emt 0:00:30]} e5 {[%emt 0:00:30]} 2. Nf3 {[%emt 0:00:00]} Nc6 {[%emt 0:00:00]} 3. Bc4 {[%emt 0:00:00]} Bc5 {[%emt 0:00:00]} 4. c3 {[%emt 0:00:30]} Nf6 {[%emt 0:01:30]} 5. d4 {[%emt 0:00:30]} exd4 {[%emt 0:00:00]} 6. e5 {[%emt 0:00:30]} d5 {[%emt 0:05:00]} 7. Bb5 {[%emt 0:00:30]} Ne4 {[%emt 0:02:30]} 8. cxd4 {[%emt 0:00:30]} Bb4+ {[%emt 0:01:30]} 9. Bd2 {[%emt 0:02:30]} Nxd2 {[%emt 0:00:30]} 10. Nbxd2 {[%emt 0:02:30]} O-O {[%emt 0:03:30]} 11. Qa4 {[%emt 0:11:30]} Bxd2+ {[%emt 0:04:30]} 12. Nxd2 {[%emt 0:00:30]} Qg5 {[%emt 0:10:30]} 13. g3 {[%emt 0:08:30]} Bd7 {[%emt 0:02:30]} 14. f4 {[%emt 0:03:30]} Qg6 {[%emt 0:02:30]} 15. Bxc6 {[%emt 0:03:30]} Bxc6 {[%emt 0:07:30]} 16. Qb3 {[%emt 0:00:30]} a6 {[%emt 0:14:30]} 17. O-O {[%emt 0:07:30]} b6 {[%emt 0:06:30]} 18. Rac1 {[%emt 0:03:30]} Rac8 {[%emt 0:04:30]} 19. Qc2 {[%emt 0:16:30]} Bb5 {[%emt 0:04:30]} 20. Qxg6 {[%emt 0:03:30]} hxg6 {[%emt 0:00:30]} 21. Rf3 {[%emt 0:01:30]} c5 {[%emt 0:06:30]} 22. Rfc3 {[%emt 0:03:30]} c4 {[%emt 0:00:30]} 23. b3 {[%emt 0:09:30]} Rfd8 {[%emt 0:03:35]} 24. bxc4 {[%emt 0:04:27]} dxc4 {[%emt 0:00:07]} 25. Nxc4 {[%emt 0:01:03]} Rxd4 {[%emt 0:00:59]} 26. Nxb6 {[%emt 0:00:18]} Rxc3 {[%emt 0:00:16]} 27. Rxc3 {[%emt 0:00:01]} Rd1+ {[%emt 0:00:47]} 28. Kf2 {[%emt 0:03:56]} Rd2+ {[%emt 0:00:02]} 29. Ke3 {[%emt 0:00:29]} Rxa2 {[%emt 0:00:25]} 30. h4 {[%emt 0:00:27]} Kf8 {[%emt 0:03:06]} 31. Nc8 {[%emt 0:03:24]} a5 {[%emt 0:03:32]} 32. Nd6 {[%emt 0:01:42]} Bd7 {[%emt 0:00:21]} 33. Nc4 {[%emt 0:01:07]} a4 {[%emt 0:01:58]} 34. Kd4 {[%emt 0:03:25]} Ke7 {[%emt 0:02:33]} 35. Ke3 {[%emt 0:01:14]} Ke6 {[%emt 0:00:45]} 36. Nd6 {[%emt 0:01:27]} Rb2 {[%emt 0:02:14]} 37. Nc4 {[%emt 0:02:08]} Rb3 {[%emt 0:00:58]} 38. Rxb3 {[%emt 0:00:20]} axb3 {[%emt 0:00:07]} 39. Kd3 {[%emt 0:01:12]} Bb5 {[%emt 0:00:11]} 0-1

[Event "Istanbul Open 2018"]
[Site "Istanbul"]
[Date "2018.09.02"]
[Round "2"]
[White "Aliakbarov, Anar"]
[Black "Oztekin, Kerem Can"]
[Result "1-0"]
[ECO "A60"]
[WhiteElo "2322"]
[BlackElo "1943"]
[Annotator "NA"]
[PlyCount "107"]
[EventDate "2018.09.02"]
[EventType "swiss"]
[EventCountry "TUR"]
[SourceTitle "playchess.com"]
[Source "ChessBase"]
[SourceQuality "1"]
[TimeControl "5400+30"]

1. d4 {[%emt 0:02:30]} Nf6 {[%emt 0:00:30]} 2. c4 {[%emt 0:02:30]} c5 {[%emt 0:00:30]} 3. d5 {[%emt 0:00:30]} e6 {[%emt 0:00:30]} 4. Nc3 {[%emt 0:00:30]} exd5 {[%emt 0:00:00]} 5. cxd5 {[%emt 0:00:00]} Bd6 {[%emt 0:00:00]} 6. Bg5 {[%emt 0:00:00] A60: Modern Benoni: Early Divergences} O-O {[%emt 0:00:30]} 7. e3 {[%emt 0:00:30]} Re8 {[%emt 0:00:30]} 8. Nf3 {[%emt 0:00:00]} (8. Bd3 Bf8 9. d6 Re6 10. Nf3 Rxd6 11. Bf4 Rb6 12. Bc4 Rb4 13. Ne5 Rxc4 14. Nxc4 {½-½ (69) Mamedyarov,S (2747)-Li,C (2751) Huaian 2016}) 8... Bf8 {[%emt 0:00:30]} 9. Bd3 {[%emt 0:03:00] LiveBook: 8 Games} d6 {[%emt 0:00:30]} 10. Nd2 {[%emt 0:00:30]} a6 $146 {[%emt 0:02:30]} ({Predecessor:} 10... Nbd7 11. O-O a6 12. a4 Rb8 13. Rc1 h6 {½-½ (68) Janik,P (2012)-Chlpik,M (2120) Banska Stiavnica 2012}) 11. a4 {[%emt 0:01:30]} Nbd7 {[%emt 0:04:30]} 12. Nc4 {[%emt 0:05:30]} Qc7 {[%emt 0:10:30]} 13. O-O {[%emt 0:01:30]} Rb8 {[%emt 0:01:30]} 14. a5 {[%emt 0:01:30]} g6 {[%emt 0:01:30]} 15. e4 {[%emt 0:04:30]} Bg7 {[%emt 0:02:30] [#]} 16. f4 {[%emt 0:27:30]} (16. Bf4 $1 $16 {[%cal Rf4d6]} Ne5 17. Nxe5 dxe5 18. Be3) 16... h6 {[%emt 0:06:30] [#]} (16... b5 $1 $11 {and Black is okay.} 17. axb6 Nxb6) 17. Bh4 {[%emt 0:00:30]} (17. Bxf6 $1 $16 Nxf6 18. Qf3) 17... b5 {[%emt 0:08:30]} 18. axb6 $1 {[%emt 0:00:30]} Nxb6 {[%emt 0:00:30]} 19. e5 {[%emt 0:09:30]} Nxc4 {[%emt 0:03:30]} 20. Bxc4 {[%emt 0:00:30]} dxe5 {[%emt 0:14:30]} 21. d6 {[%emt 0:00:30]} Qd8 {[%emt 0:00:30]} 22. fxe5 {[%emt 0:05:30]} Rxe5 {[%emt 0:00:30]} 23. d7 {[%emt 0:16:45]} Bxd7 {[%emt 0:06:30]} 24. Rxa6 {[%emt 0:00:32]} g5 {[%emt 0:01:30]} 25. Bg3 {[%emt 0:00:29]} Rf5 {[%emt 0:04:30]} 26. Bxb8 {[%emt 0:01:39]} Qxb8 {[%emt 0:00:00]} 27. Rxf5 {[%emt 0:05:55]} ({White should try} 27. Rxf6 $16 Bxf6 28. Qxd7 Bd4+ 29. Kh1 Rxf1+ 30. Bxf1) 27... Bxf5 {[%emt 0:00:00]} 28. Qf3 {[%emt 0:06:15]} Qe5 $1 {[%emt 0:03:30]} 29. Ra8+ {[%emt 0:01:00]} Kh7 {[%emt 0:01:30]} 30. Bxf7 {[%emt 0:02:30]} Ng4 {[%emt 0:00:30]} 31. Bg8+ {[%emt 0:00:04]} Kg6 {[%emt 0:00:30]} 32. Qc6+ {[%emt 0:00:15]} Nf6 {[%emt 0:13:46]} 33. Ra1 {[%emt 0:00:28]} Bd7 {[%emt 0:02:18]} (33... h5 $14) 34. Qa6 {[%emt 0:00:08]} Qe3+ 35. Kh1 Kh5 36. Bf7+ Kh4 37. Qc4+ g4 38. Rf1 (38. Nd5 $142 Qe4 39. Qxc5 Nxd5 40. Bxd5) 38... Bc6 39. Qf4 Qh3 $2 (39... Qxf4 40. Rxf4 Bd7) 40. Qf2+ $2 (40. Rf2 Qd3 41. Qe5) 40... g3 41. Qxg3+ Qxg3 42. hxg3+ Kxg3 43. Ne2+ Kh4 44. Rf4+ Kg5 45. Rc4 Nd7 46. Rc2 Be4 {[#]} 47. Rd2 $1 Ne5 48. Bd5 Bg6 49. b3 Nd3 50. Bc4 Nf2+ 51. Kg1 Ne4 52. Rd5+ Kf6 53. Bd3 Ke6 $18 (53... Bh7 54. Nf4 Ke7) 54. Nf4+ 1-0

[Event "Istanbul Open 2018"]
[Site "Istanbul"]
[Date "2018.09.02"]
[Round "2"]
[White "Nuri, Murad"]
[Black "Tinarlioglu, Emre"]
[Result "1-0"]
[ECO "A33"]
[WhiteElo "2284"]
[BlackElo "1796"]
[Annotator "ChessBase"]
[PlyCount "95"]
[EventDate "2018.09.02"]
[EventType "swiss"]
[EventCountry "TUR"]
[SourceTitle "playchess.com"]
[Source "ChessBase"]
[SourceQuality "1"]
[TimeControl "5400+30"]

1. d4 Nf6 2. c4 c5 3. Nf3 cxd4 4. Nxd4 e6 5. Nc3 Nc6 6. Bf4 d6 7. Ndb5 e5 8. Bg5 a6 9. Bxf6 gxf6 10. Na3 Be6 11. e3 Qa5 12. Be2 f5 13. O-O O-O-O 14. Nc2 d5 15. cxd5 Bxd5 16. Nxd5 Rxd5 17. Qb1 Bg7 18. Bc4 Rd7 19. b4 Qc7 20. b5 Na5 21. Be2 Rd2 22. Rc1 Kb8 23. Nd4 Qb6 24. Nxf5 Rxe2 25. Nxg7 axb5 26. Nf5 Rd2 27. Qe4 f6 28. Ng3 b4 29. Rab1 Nc6 30. Qc4 Qa5 31. Ne4 Rxa2 32. Nxf6 Rd8 33. Ne4 Qa3 34. Nc5 Rdd2 35. Qg8+ Nd8 36. Ne4 Rd7 37. Qe8 Rd5 38. Nf6 Rdd2 39. Nd7+ Rxd7 40. Qxd7 Nc6 41. Qxh7 Qa6 42. Qg8+ Ka7 43. Qxa2 Qxa2 44. Ra1 b3 45. Rxa2+ bxa2 46. Ra1 Nb4 47. h4 Kb6 48. h5 1-0

[Event "Istanbul Open 2018"]
[Site "Istanbul"]
[Date "2018.09.02"]
[Round "2"]
[White "Eryigit, Yakup"]
[Black "Ozveren, Ali Bulent"]
[Result "1-0"]
[ECO "A35"]
[WhiteElo "2030"]
[BlackElo "1849"]
[Annotator "NA"]
[PlyCount "67"]
[EventDate "2018.09.02"]
[EventType "swiss"]
[EventCountry "TUR"]
[SourceTitle "playchess.com"]
[Source "ChessBase"]
[SourceQuality "1"]
[TimeControl "5400+30"]

1. Nf3 {[%emt 0:00:30]} c5 {[%emt 0:00:30]} 2. c4 {[%emt 0:00:00]} Nc6 {[%emt 0:00:30]} 3. Nc3 {[%emt 0:00:00]} g6 {[%emt 0:00:30]} 4. e3 {[%emt 0:00:30]} Bg7 {[%emt 0:03:30]} 5. d4 {[%emt 0:00:30]} cxd4 {[%emt 0:07:30]} 6. exd4 {[%emt 0:00:30]} d6 {[%emt 0:00:30]} 7. Be2 {[%emt 0:05:30] LiveBook: 73 Games} Nh6 {[%emt 0:05:30] A35: Symmetrical English: 2 Nc3 Nc6 3 Nf3} 8. d5 {[%emt 0:00:30]} Ne5 {[%emt 0:02:30]} 9. Nxe5 {[%emt 0:00:30]} dxe5 {[%emt 0:00:00]} 10. O-O {[%emt 0:00:30]} O-O {[%emt 0:00:00]} 11. a4 $146 {[%emt 0:09:30]} ({Predecessor:} 11. Re1 Nf5 12. Bd3 b6 13. a4 a5 14. Bg5 h6 15. Bd2 {½-½ (34) Gritsak,O (2548)-Lewicki,M (2222) Warsaw 2011}) 11... Nf5 {[%emt 0:01:30]} 12. a5 {[%emt 0:00:30]} a6 {[%emt 0:02:30]} 13. b4 {[%emt 0:03:30]} Nd4 {[%emt 0:05:30]} 14. Be3 {[%emt 0:01:30]} Bf5 {[%emt 0:01:30]} 15. Rc1 {[%emt 0:00:30]} ({Lieber} 15. Bd3 $16) 15... h5 {[%emt 0:27:30]} ({Better is} 15... b6 $14) 16. Bd3 {[%emt 0:04:30]} Bg4 {[%emt 0:04:30]} 17. f3 {[%emt 0:00:30]} Bd7 {[%emt 0:01:30]} 18. c5 {[%emt 0:07:30]} f5 {[%emt 0:06:30]} (18... Nf5 $16 19. Bxf5 gxf5) 19. Ne2 {[%emt 0:03:30]} Nxe2+ {[%emt 0:07:32]} 20. Qxe2 {[%emt 0:00:30]} Qe8 {[%emt 0:00:59]} 21. Bc4 {[%emt 0:02:30]} Kh7 {[%emt 0:00:08]} 22. Rfd1 {[%emt 0:00:00]} Ba4 {[%emt 0:03:44]} 23. Rd2 {[%emt 0:00:00]} Rd8 {[%emt 0:05:57]} 24. Bg5 {[%emt 0:03:30]} Rd7 {[%emt 0:04:59]} 25. b5 {[%emt 0:10:30]} axb5 {[%emt 0:02:20]} 26. Bxb5 $16 {[%emt 0:00:30]} Bxb5 {[%emt 0:00:30]} 27. Qxb5 {[%emt 0:00:30]} Bf6 {[%emt 0:02:04]} 28. Be3 {[%emt 0:01:30]} Qd8 {[%emt 0:00:45]} 29. Rcd1 {[%emt 0:00:30]} f4 {[%emt 0:01:25]} 30. Bf2 {[%emt 0:00:30]} e4 {[%emt 0:00:21]} 31. fxe4 {[%emt 0:00:30]} Bc3 {[%emt 0:00:12]} 32. Rd3 {[%emt 0:00:00]} Bxa5 {[%emt 0:00:17]} 33. e5 {[%emt 0:00:00]} f3 {[%emt 0:00:32]} 34. e6 {[%emt 0:00:30]} 1-0

[Event "Istanbul Open 2018"]
[Site "Istanbul"]
[Date "2018.09.02"]
[Round "2"]
[White "Konduk, Bekir Sami"]
[Black "Abishli, Oghuz"]
[Result "1/2-1/2"]
[ECO "C01"]
[WhiteElo "1942"]
[BlackElo "2099"]
[Annotator "NA"]
[PlyCount "97"]
[EventDate "2018.09.02"]
[EventType "swiss"]
[EventCountry "TUR"]
[SourceTitle "playchess.com"]
[Source "ChessBase"]
[SourceQuality "1"]
[TimeControl "5400+30"]

1. e4 {[%emt 0:00:30]} e6 {[%emt 0:00:30]} 2. Nf3 {[%emt 0:00:00]} d5 {[%emt 0:00:30]} 3. Nc3 {[%emt 0:00:00]} Nf6 {[%emt 0:02:30]} 4. exd5 {[%emt 0:00:00]} exd5 {[%emt 0:00:00]} 5. d4 {[%emt 0:00:00]} c6 {[%emt 0:10:00]} 6. Bg5 {[%emt 0:03:30]} Bb4 {[%emt 0:11:30] C01: French: Exchange Variation} (6... Bd6 7. Be2 Nbd7 8. O-O O-O 9. Re1 Qb6 10. Rb1 Ne4 11. Nxe4 dxe4 12. Nd2 Qxd4 13. Nxe4 Bxh2+ 14. Kxh2 Qxe4 15. Bf3 Qf5 16. Be7 Re8 17. Qd4 {0-1 (36) Trabattoni,F (2353)-Huebner,R (2603) Penne 2004}) 7. Bd3 {[%emt 0:05:30]} Be6 {[%emt 0:04:30]} 8. O-O {[%emt 0:01:30]} Nbd7 {[%emt 0:02:30]} 9. Ne2 {[%emt 0:05:30]} h6 $146 {[%emt 0:04:30]} ({Predecessor:} 9... Qc7 10. Rc1 h6 11. Bh4 g5 12. Bg3 Bd6 13. Re1 O-O-O 14. c4 {1-0 (27) Reuter,M (1518)-Koenig,D (1296) Willingen 2018}) 10. Bd2 {[%emt 0:02:30]} Bxd2 {[%emt 0:08:30]} 11. Qxd2 {[%emt 0:05:30]} O-O {[%emt 0:02:30]} 12. h3 {[%emt 0:01:30]} Ne4 {[%emt 0:02:30]} 13. Qf4 {[%emt 0:05:30]} g5 {[%emt 0:07:30]} 14. Qe3 {[%emt 0:01:30]} f5 {[%emt 0:01:30]} 15. Bxe4 {[%emt 0:03:30]} (15. c4 $11) 15... dxe4 {[%emt 0:01:30]} 16. Ne5 {[%emt 0:05:30]} Bd5 {[%emt 0:11:30]} 17. c4 {[%emt 0:15:30]} Nxe5 {[%emt 0:02:30]} 18. cxd5 {[%emt 0:00:30]} Nc4 {[%emt 0:02:30]} 19. Qb3 {[%emt 0:10:30]} Na5 {[%emt 0:15:19]} 20. Qg3 {[%emt 0:11:30]} cxd5 {[%emt 0:02:33]} 21. f4 {[%emt 0:00:30]} Nc6 {[%emt 0:04:51]} 22. fxg5 {[%emt 0:00:30]} Qxg5 {[%emt 0:00:29]} 23. Qb3 {[%emt 0:00:30]} Rad8 {[%emt 0:01:12]} 24. Kh1 {[%emt 0:10:29]} f4 {[%emt 0:00:25]} 25. Qxb7 {[%emt 0:00:10]} Rd6 26. Rac1 Rg6 27. Rg1 Na5 28. Qc7 Nc4 29. Rcf1 Rg7 30. Qc6 Ne3 31. Rf2 Qh4 32. Qe6+ Kh7 33. g3 Rf6 34. gxh4 Rxg1+ 35. Kxg1 Rxe6 36. Rxf4 Rg6+ 37. Kf2 Nd1+ 38. Ke1 Nxb2 39. Rf7+ Rg7 $11 40. Rxg7+ Kxg7 41. Nc3 Nd3+ 42. Kd2 Nf4 43. Ke3 Ng2+ 44. Kf2 Nxh4 45. Nxd5 Nf5 46. Nc3 Nxd4 47. Nxe4 Kg6 48. Ke3 Nc6 49. Kf4 1/2-1/2

[Event "Istanbul Open 2018"]
[Site "Istanbul"]
[Date "2018.09.02"]
[Round "2"]
[White "Asgarov, Nihad"]
[Black "Emir, Emirhan"]
[Result "0-1"]
[ECO "C02"]
[WhiteElo "1937"]
[BlackElo "1852"]
[Annotator "NA"]
[PlyCount "76"]
[EventDate "2018.09.02"]
[EventType "swiss"]
[EventCountry "TUR"]
[SourceTitle "playchess.com"]
[Source "ChessBase"]
[SourceQuality "1"]
[TimeControl "5400+30"]

1. e4 {[%emt 0:00:30]} e6 {[%emt 0:00:30]} 2. d4 {[%emt 0:00:00]} d5 {[%emt 0:00:00]} 3. e5 {[%emt 0:00:00]} c5 {[%emt 0:00:00]} 4. c3 {[%emt 0:00:00]} Nc6 {[%emt 0:00:00]} 5. Nf3 {[%emt 0:00:00]} Qb6 {[%emt 0:00:00]} 6. Bd3 {[%emt 0:00:30]} cxd4 {[%emt 0:00:30]} 7. cxd4 {[%emt 0:00:00]} Bd7 {[%emt 0:00:00]} ({Vergiftet wäre} 7... Nxd4 $2 8. Nxd4 Bc5 9. Nb5 $18) 8. O-O {[%emt 0:00:00]} Nxd4 {[%emt 0:01:00]} 9. Nxd4 {[%emt 0:00:00]} Qxd4 {[%emt 0:00:00]} 10. Nc3 {[%emt 0:00:00]} a6 {[%emt 0:00:00]} 11. Qe2 {[%emt 0:00:30]} Qb6 {[%emt 0:01:30]} 12. Kh1 {[%emt 0:00:30]} Rc8 {[%emt 0:03:30] C02: Französische Verteidigung (Vorstoßvariante)} 13. f4 {[%emt 0:00:30]} g6 $146 {[%emt 0:01:30]} ({Vorgänger:} 13... Bc5 14. f5 Bd4 15. Bg5 Bxc3 16. bxc3 Rxc3 17. Bd2 Rc6 18. Qg4 Ne7 19. Rab1 Qc7 20. Qxg7 Rf8 21. f6 {1-0 (21) Bohak,J (2382)-Jaksa,C (2000) ICCF email 1999}) 14. g4 {[%emt 0:09:30]} Ne7 {[%emt 0:07:30]} 15. Bd2 {[%emt 0:23:30]} (15. Be3 $17 {keeps fighting.} d4 16. Bf2) 15... h5 {[%emt 0:03:30]} ({Don't play} 15... Qxb2 16. Rab1 $15) 16. f5 {[%emt 0:03:30]} exf5 {[%emt 0:02:30]} 17. gxf5 {[%emt 0:00:30]} gxf5 {[%emt 0:00:30]} 18. e6 {[%emt 0:12:30]} fxe6 {[%emt 0:10:30]} 19. Bxf5 {[%emt 0:07:30]} exf5 {[%emt 0:06:30]} ({Weaker is} 19... Nxf5 20. Rxf5 Be7 21. Re1 $17) 20. Rae1 {[%emt 0:05:30]} Qc6 $19 {[%emt 0:07:30]} 21. Qe5 {[%emt 0:08:30]} d4+ {[%emt 0:00:30]} 22. Nd5 {[%emt 0:00:00]} Qxd5+ {[%emt 0:01:30]} 23. Qxd5 {[%emt 0:01:00]} Bc6 {[%emt 0:00:00]} 24. Rxf5 {[%emt 0:01:30]} Bxd5+ {[%emt 0:00:00]} 25. Rxd5 {[%emt 0:00:00]} Rd8 {[%emt 0:00:30]} 26. Rde5 {[%emt 0:01:00]} Rd7 {[%emt 0:01:30]} 27. Bb4 {[%emt 0:00:00]} d3 {[%emt 0:00:30]} 28. Kg2 {[%emt 0:01:00]} d2 {[%emt 0:00:30]} 29. Rd1 {[%emt 0:00:00]} Bg7 {[%emt 0:01:30]} 30. Rxe7+ {[%emt 0:00:00]} Rxe7 {[%emt 0:00:00]} 31. Bxe7 {[%emt 0:00:30]} Kxe7 {[%emt 0:00:00]} 32. Rxd2 {[%emt 0:00:00]} Rd8 {[%emt 0:00:30]} 33. Re2+ {[%emt 0:00:00]} Kf7 {[%emt 0:00:30]} 34. Kh3 {[%emt 0:00:30]} Bf6 {[%emt 0:00:30]} 35. Rc2 {[%emt 0:00:00]} Rd3+ {[%emt 0:00:30]} 36. Kg2 {[%emt 0:00:00]} Kg6 {[%emt 0:00:00]} 37. b3 {[%emt 0:00:30]} b5 {[%emt 0:00:00]} 38. Kf1 {[%emt 0:00:30]} Rd1+ {[%emt 0:00:30]} 0-1

[Event "Istanbul Open 2018"]
[Site "Istanbul"]
[Date "2018.09.02"]
[Round "2"]
[White "Acarbay, Aydin"]
[Black "Guven, Oguz Kagan"]
[Result "0-1"]
[ECO "A31"]
[WhiteElo "1894"]
[BlackElo "2022"]
[Annotator "NA"]
[PlyCount "56"]
[EventDate "2018.09.02"]
[EventType "swiss"]
[EventCountry "TUR"]
[SourceTitle "playchess.com"]
[Source "ChessBase"]
[SourceQuality "1"]
[TimeControl "5400+30"]

1. d4 {[%emt 0:00:30]} Nf6 {[%emt 0:02:30]} 2. c4 {[%emt 0:00:30]} c5 {[%emt 0:00:00]} 3. Nf3 {[%emt 0:01:30]} cxd4 {[%emt 0:00:00]} 4. Nxd4 {[%emt 0:00:30]} e5 {[%emt 0:00:30]} 5. Nc2 {[%emt 0:08:30]} Nc6 {[%emt 0:06:30] LiveBook: 23 Partien A31: Symmetrical English: 2 Nf3 Nf6 3 d4} (5... d5 6. cxd5 Qxd5 7. Qxd5 Nxd5 8. e4 Nb4 9. Nxb4 Bxb4+ 10. Bd2 Bxd2+ 11. Nxd2 Ke7 12. Bc4 Nc6 13. Rc1 Rd8 14. Nf3 Bg4 15. Bd5 Bxf3 16. gxf3 Nd4 17. Kd2 Ne6 18. Ke3 {0-1 (45) Ftacnik,L (2548)-Salem,A (2628) Baku 2016}) 6. g3 {[%emt 0:02:30]} Bc5 {[%emt 0:07:30]} ({Black should play} 6... d5 $15) 7. Bg2 {[%emt 0:03:30]} d6 {[%emt 0:00:30]} 8. O-O {[%emt 0:02:30]} Be6 {[%emt 0:00:30]} 9. Ne3 $146 {[%emt 0:12:30]} ({Predecessor:} 9. b3 O-O 10. Nc3 h6 11. Be3 Bxe3 12. Nxe3 Ne8 13. Ned5 {1-0 (42) Herrera,P (2080)-Tomeo,N (2050) Ciudadela 2008}) 9... Bxe3 {[%emt 0:06:30]} 10. Bxe3 {[%emt 0:00:30]} O-O {[%emt 0:03:30]} 11. b3 {[%emt 0:10:30]} d5 {[%emt 0:06:30]} 12. Bc5 {[%emt 0:14:30]} Re8 {[%emt 0:00:30]} 13. cxd5 {[%emt 0:00:30]} Bxd5 {[%emt 0:01:30]} 14. Bxd5 {[%emt 0:02:30]} Nxd5 {[%emt 0:01:30]} 15. Qd2 {[%emt 0:02:30]} b6 {[%emt 0:13:30]} 16. Rd1 {[%emt 0:07:30]} Nf6 {[%emt 0:00:30]} 17. Ba3 {[%emt 0:07:30]} Qc8 {[%emt 0:05:30]} 18. e3 {[%emt 0:02:02]} e4 {[%emt 0:10:30]} 19. Bb2 {[%emt 0:05:56]} Qf5 {[%emt 0:02:30]} 20. Bxf6 {[%emt 0:01:20]} Qxf6 {[%emt 0:00:30]} 21. Na3 {[%emt 0:06:18]} Rad8 {[%emt 0:02:30]} 22. Qe2 {[%emt 0:00:38]} Ne5 $15 {[%emt 0:00:30]} 23. Rxd8 {[%emt 0:02:38]} Rxd8 {[%emt 0:00:30]} 24. Rd1 {[%emt 0:01:02]} Rd3 {[%emt 0:02:30]} 25. Rc1 {[%emt 0:01:40]} g6 {[%emt 0:00:30]} 26. Nc4 {[%emt 0:00:55]} Nf3+ {[%emt 0:00:30]} 27. Kg2 {[%emt 0:00:19]} b5 {[%emt 0:00:30]} 28. Qb2 {[%emt 0:00:39]} Qf5 {[%emt 0:05:53]} 0-1